fUSD/lending_fUSD_20250617
["ID","MTS","AMOUNT","RATE_DAILY","PERIOD"]
[366213323,1750123855003,-490.0,0.00016783,2]
[366213324,1750123855014,-490.0,0.00016947,2]
[366213325,1750123855024,-842.83084132,0.00016999,2]
[366213326,1750123855034,-492.26915868,0.00016999,2]
[366213327,1750123855047,-397.23084132,0.00016999,2]
[366213328,1750123855058,-889.5,0.00016999,2]
[366213329,1750123855068,-889.5,0.00016999,2]
[366213330,1750123855079,-889.5,0.00016999,2]
[366213331,1750123855089,-889.5,0.00016999,2]
[366213332,1750123855098,-889.5,0.00016999,2]
[366213333,1750123855109,-889.5,0.00016999,2]
[366213334,1750123855119,-889.5,0.00016999,2]
[366213335,1750123855130,-889.5,0.00016999,2]
[366213336,1750123855140,-144.84487964,0.00016999,2]
[366213337,1750123855158,-744.65512036,0.00016999,2]
[366213338,1750123855168,-889.5,0.00016999,2]
[366213339,1750123855178,-889.5,0.00016999,2]
[366213340,1750123855189,-309.44497828,0.00016999,2]
[366213341,1750123855201,-580.05502172,0.00016999,2]
[366213342,1750123855210,-889.5,0.00016999,2]
[366213343,1750123855220,-889.5,0.00016999,2]
[366213344,1750123855230,-733.09273828,0.00016999,2]
[366213345,1750123855243,-156.40726172,0.00016999,2]
[366213346,1750123855252,-97.00101859,0.00016999,2]
[366213347,1750123855270,-946.21225572,0.00016288,2]
[366213348,1750123855282,-94.99147841,0.00016288,2]
[366213349,1750123855293,-314.1893256,0.00016999,2]
[366213350,1750123855305,-478.45965581,0.00016999,2]
[366213351,1750123855315,-160.20916975,0.00016999,2]
[366213352,1750123855335,-313.25115735,0.00016999,2]
[366213353,1750123855348,-26.5396729,0.00016999,2]
[366213354,1750123855358,-373.88,0.00016999,2]
[366213355,1750123855368,-500.0,0.00016999,2]
[366213356,1750123855378,-500.0,0.00016999,2]
[366213357,1750123855388,-500.0,0.00016999,2]
[366213358,1750123855398,-494.0,0.00016999,2]
[366213359,1750123855407,-500.0,0.00016999,2]
[366213360,1750123855417,-500.0,0.00016999,2]
[366213361,1750123855428,-328.48115596,0.00016999,2]
[366213362,1750123855439,-1189.0,0.00016999,2]
[366213363,1750123855450,-1204.48139393,0.00017,2]
[366213364,1750123855459,-2049.92660721,0.00017,2]
[366213365,1750123855477,-2146.4884675,0.00017,2]
[366213366,1750123855489,-396430.4425163,0.00017,2]
[366213367,1750123855502,-20856.25640141,0.00017,2]
[366213374,1750124088587,4000.0,0.0001549,2]
[366213375,1750124122775,728.0,0.0001549,2]
[366213376,1750124268755,2820.0,0.00024657,120]
[366213377,1750124286359,150.0,0.000154,2]
[366213378,1750124411650,263.0,0.00015262,2]
[366213379,1750124465211,1638.49,0.00015352,2]
[366213381,1750124492946,256.63,0.00013699,2]
[366213383,1750124584661,302.29,0.00015327,2]
[366213384,1750124651426,195.9,0.00024649,120]
[366213385,1750124772159,261.0,0.00014714,2]
[366213386,1750124772516,261.0,0.00015171,2]
[366213387,1750124814991,469.359,0.00024658,120]
[366213388,1750124816222,250.0,0.00015376,2]
[366213389,1750124877210,250.0,0.00015,2]
[366213390,1750124964272,200.0,0.00015396,2]
[366213401,1750125031748,-670.59153593,0.00015569,2]
[366213402,1750125031760,-298.1025574,0.00015569,2]
[366213403,1750125031777,-31.30590667,0.00015569,2]
[366213404,1750125031787,-250.0,0.00015599,2]
[366213405,1750125031796,-127.74309333,0.00015629,3]
[366213406,1750125031823,-133.25690667,0.00015629,3]
[366213407,1750125031834,-300.0,0.00015788,2]
[366213408,1750125031844,-96.0767464,0.00016086,3]
[366213409,1750125031856,-164.9232536,0.00016086,3]
[366213410,1750125031866,-309.94912444,0.00016097,2]
[366213411,1750125031879,-91.75008329,0.00016097,2]
[366213412,1750125031888,-162.08601683,0.00016097,2]
[366213413,1750125031901,-45.31398317,0.00016097,2]
[366213414,1750125031911,-300.6,0.000161,2]
[366213415,1750125031921,-166.91134608,0.00016106,2]
[366213416,1750125031935,-1033.08865392,0.00016106,2]
[366213417,1750125031945,-301.78,0.00016107,2]
[366213418,1750125031955,-305.13,0.00016107,2]
[366213419,1750125031967,-503.44,0.00016107,2]
[366213420,1750125031977,-491.36,0.00016107,2]
[366213421,1750125031987,-300.15,0.00016107,2]
[366213422,1750125031996,-493.23,0.00016107,2]
[366213424,1750125032006,-507.24,0.00016107,2]
[366213426,1750125032016,-494.49,0.00016107,2]
[366213428,1750125032026,-302.12,0.00016107,2]
[366213430,1750125032036,-499.91,0.00016107,2]
[366213432,1750125032046,-507.46,0.00016107,2]
[366213434,1750125032055,-496.73,0.00016108,2]
[366213436,1750125032065,-505.85,0.00016108,2]
[366213438,1750125032075,-300.71,0.00016108,2]
[366213440,1750125032085,-730.96003032,0.00016112,2]
[366213442,1750125032095,-503.78,0.00016112,2]
[366213444,1750125032105,-509.63,0.00016112,2]
[366213446,1750125032115,-301.39,0.00016116,2]
[366213448,1750125032124,-492.84,0.00016133,2]
[366213451,1750125032135,-494.65,0.00016133,2]
[366213452,1750125032144,-504.96,0.00016133,2]
[366213454,1750125032155,-250.0,0.00016136,2]
[366213456,1750125032164,-303.16,0.00016155,2]
[366213458,1750125032174,-305.56,0.00016155,2]
[366213460,1750125032184,-495.83,0.00016253,2]
[366213462,1750125032194,-492.4,0.00016253,2]
[366213464,1750125032204,-491.49,0.00016253,2]
[366213465,1750125032214,-502.63,0.00016253,2]
[366213466,1750125032224,-151.0,0.00016278,2]
[366213467,1750125032233,-1036.39451925,0.00016288,2]
[366213468,1750125032243,-1046.01701721,0.00016288,2]
[366213469,1750125032254,-1594.88,0.000163,2]
[366213470,1750125032263,-833.8156298,0.00016445,2]
[366213471,1750125032273,-261.0,0.00016544,4]
[366213472,1750125032284,-946.0,0.00016585,2]
[366213473,1750125032294,-3333.0,0.00016585,2]
[366213474,1750125032308,-638.875,0.00016585,2]
[366213475,1750125032318,-803.0,0.00016585,2]
[366213476,1750125032328,-928.0,0.00016585,2]
[366213477,1750125032338,-592.639,0.00016585,2]
[366213478,1750125032350,-1277.0,0.00016585,2]
[366213479,1750125032361,-2003.0,0.00016585,2]
[366213480,1750125032371,-558.0,0.00016585,2]
[366213481,1750125032383,-1680.656,0.00016585,2]
[366213482,1750125032393,-884.0,0.00016585,2]
[366213483,1750125032403,-199.0,0.00016585,2]
[366213484,1750125032412,-150.0,0.00016585,2]
[366213485,1750125032422,-150.098,0.00016585,2]
[366213486,1750125032433,-854.0,0.00016585,2]
[366213487,1750125032443,-150.0,0.00016585,2]
[366213488,1750125032453,-155.0,0.00016585,2]
[366213489,1750125032463,-150.116,0.00016585,2]
[366213490,1750125032473,-4070.18800804,0.00016608,2]
[366213491,1750125032483,-503.18625476,0.00016618,2]
[366213492,1750125032493,-582.36488671,0.00016618,2]
[366213493,1750125032503,-496.94525374,0.00016618,2]
[366213494,1750125032512,-500.0,0.00016618,2]
[366213495,1750125032522,-490.0,0.00016618,2]
[366213496,1750125032532,-491.19666673,0.00016618,2]
[366213497,1750125032542,-502.96,0.00016618,2]
[366213498,1750125032552,-490.0,0.00016618,2]
[366213499,1750125032562,-504.75174642,0.00016618,2]
[366213500,1750125032572,-490.78364625,0.00016618,2]
[366213501,1750125032581,-495.56427707,0.00016618,2]
[366213502,1750125032591,-495.99700319,0.00016618,2]
[366213503,1750125032602,-490.0,0.00016618,2]
[366213504,1750125032611,-498.17264596,0.00016618,2]
[366213505,1750125032622,-614.39855968,0.00016618,2]
[366213506,1750125032632,-490.0,0.00016618,2]
[366213507,1750125032643,-490.0,0.00016618,2]
[366213508,1750125032652,-490.0,0.00016618,2]
[366213509,1750125032662,-490.0,0.00016618,2]
[366213510,1750125032673,-493.18517336,0.00016618,2]
[366213511,1750125032683,-490.0,0.00016618,2]
[366213512,1750125032693,-494.44204332,0.00016618,2]
[366213513,1750125032703,-498.81531538,0.00016618,2]
[366213514,1750125032713,-497.62404288,0.00016618,2]
[366213515,1750125032723,-491.7449939,0.00016618,2]
[366213516,1750125032733,-507.37785812,0.00016618,2]
[366213517,1750125032743,-496.64537298,0.00016618,2]
[366213518,1750125032753,-490.0,0.00016618,2]
[366213519,1750125032763,-516.45217407,0.00016618,2]
[366213520,1750125032773,-490.0,0.00016618,2]
[366213521,1750125032783,-516.02066265,0.00016618,2]
[366213522,1750125032793,-490.0,0.00016618,2]
[366213523,1750125032803,-518.72469026,0.00016618,2]
[366213524,1750125032814,-490.0,0.00016618,2]
[366213525,1750125032825,-500.36915276,0.00016618,2]
[366213526,1750125032835,-490.0,0.00016618,2]
[366213527,1750125032844,-202.75467795,0.00016618,2]
[366213528,1750125032854,-490.0,0.00016618,2]
[366213529,1750125032864,-474.30620308,0.00016618,2]
[366213530,1750125032874,-490.0,0.00016618,2]
[366213531,1750125032884,-446.76409136,0.00016618,2]
[366213532,1750125032894,-492.32667559,0.00016618,2]
[366213533,1750125032905,-494.42546358,0.00016618,2]
[366213534,1750125032915,-498.42808991,0.00016618,2]
[366213535,1750125032926,-507.69,0.0001662,2]
[366213536,1750125032936,-980.335896,0.0001666,2]
[366213537,1750125032946,-500.0,0.0001668,2]
[366213538,1750125032956,-215.08261811,0.00016681,2]
[366213539,1750125032966,-552.5951,0.00016682,2]
[366213540,1750125032976,-153.79393504,0.00016682,2]
[366213541,1750125032986,-448.0,0.00016685,2]
[366213542,1750125032997,-221.01107033,0.000167,2]
[366213543,1750125033008,-566.04,0.00016772,2]
[366213544,1750125033018,-554.61668502,0.00016781,2]
[366213545,1750125033027,-490.0,0.00016781,2]
[366213546,1750125033037,-490.0,0.00016781,2]
[366213547,1750125033048,-490.0,0.00016781,2]
[366213548,1750125033058,-495.13210954,0.00016781,2]
[366213549,1750125033069,-490.0,0.00016781,2]
[366213550,1750125033079,-301.11970745,0.00016781,2]
[366213551,1750125033089,-490.0,0.00016781,2]
[366213552,1750125033100,-490.0,0.00016781,2]
[366213553,1750125033110,-498.35905276,0.00016781,2]
[366213554,1750125033120,-490.0,0.00016781,2]
[366213555,1750125033130,-490.0,0.00016781,2]
[366213556,1750125033140,-490.0,0.00016781,2]
[366213557,1750125033149,-175.03093997,0.00016781,2]
[366213558,1750125033159,-490.0,0.00016781,2]
[366213559,1750125033169,-638.22004928,0.00016781,2]
[366213560,1750125033180,-490.0,0.00016781,2]
[366213561,1750125033190,-148.63056658,0.00016781,2]
[366213563,1750125037420,-815.94350614,0.00015763,2]
[366213564,1750125037431,-681.32401356,0.00016585,2]
[366213565,1750125037659,-828.66920263,0.00016585,2]
[366213572,1750125039569,-5603.00678381,0.00016585,2]
[366213573,1750125039579,-341.36943342,0.00016781,2]
[366213574,1750125039590,-490.0,0.00016781,2]
[366213575,1750125039600,-495.96015985,0.00016781,2]
[366213576,1750125039610,-490.0,0.00016781,2]
[366213577,1750125039620,-490.0,0.00016781,2]
[366213578,1750125039630,-490.0,0.00016781,2]
[366213579,1750125039639,-490.0,0.00016781,2]
[366213580,1750125039649,-526.63146696,0.00016781,2]
[366213581,1750125039659,-518.34550163,0.00016781,2]
[366213582,1750125039669,-529.13866829,0.00016781,2]
[366213583,1750125039678,-505.64846612,0.00016781,2]
[366213584,1750125039688,-359.68916812,0.00016781,2]
[366213585,1750125039698,-540.08172941,0.00016781,2]
[366213586,1750125039709,-616.96673708,0.00016781,2]
[366213587,1750125039719,-565.19236812,0.00016781,2]
[366213588,1750125039729,-198.92428405,0.00016781,2]
[366213589,1750125039738,-589.60554115,0.00016781,2]
[366213590,1750125039748,-352.31713941,0.00016781,2]
[366213591,1750125039758,-490.0,0.00016781,2]
[366213592,1750125039769,-590.53975791,0.00016781,2]
[366213593,1750125039779,-515.41273382,0.00016781,2]
[366213594,1750125039789,-490.0,0.00016781,2]
[366213595,1750125039798,-490.0,0.00016781,2]
[366213596,1750125039808,-490.0,0.00016781,2]
[366213597,1750125040117,-490.0,0.00016781,2]
[366213598,1750125040133,-490.0,0.00016781,2]
[366213599,1750125040144,-490.0,0.00016781,2]
[366213600,1750125040154,-490.0,0.00016781,2]
[366213601,1750125040164,-530.16695576,0.00016781,2]
[366213602,1750125040174,-490.0,0.00016781,2]
[366213603,1750125040184,-496.7970445,0.00016781,2]
[366213604,1750125040194,-490.0,0.00016781,2]
[366213605,1750125040204,-490.0,0.00016781,2]
[366213606,1750125040213,-550.80918912,0.00016781,2]
[366213607,1750125040224,-492.91148088,0.00016781,2]
[366213608,1750125040236,-492.51602859,0.00016781,2]
[366213609,1750125040245,-501.87701763,0.00016781,2]
[366213610,1750125040255,-499.85516055,0.00016781,2]
[366213611,1750125040265,-490.0,0.00016781,2]
[366213612,1750125040275,-490.0,0.00016781,2]
[366213613,1750125040284,-522.78832938,0.00016781,2]
[366213614,1750125040294,-497.1068366,0.00016781,2]
[366213615,1750125040307,-505.2608578,0.00016781,2]
[366213616,1750125040317,-528.48521735,0.00016781,2]
[366213617,1750125040327,-494.51995372,0.00016781,2]
[366213618,1750125040337,-495.49519641,0.00016781,2]
[366213619,1750125040347,-495.06428613,0.00016781,2]
[366213620,1750125040356,-492.61435172,0.00016781,2]
[366213621,1750125040365,-494.48804374,0.00016781,2]
[366213622,1750125040376,-490.0,0.00016781,2]
[366213623,1750125040387,-495.41445378,0.00016781,2]
[366213624,1750125040396,-491.66528929,0.00016781,2]
[366213625,1750125040406,-495.12497248,0.00016781,2]
[366213626,1750125040416,-490.0,0.00016781,2]
[366213627,1750125040425,-492.66784776,0.00016781,2]
[366213628,1750125040436,-290.60381688,0.00016781,2]
[366213629,1750125040450,-205.08130194,0.00016781,2]
[366213630,1750125040460,-498.78265446,0.00016781,2]
[366213631,1750125040471,-33.42442266,0.00016781,2]
[366213632,1750125040491,-457.42646671,0.00016781,2]
[366213633,1750125040502,-496.01853303,0.00016781,2]
[366213634,1750125040511,-467.88900027,0.00016781,2]
[366213635,1750125041430,201.0,0.00014714,2]
[366213640,1750125071408,232.0,0.00014714,2]
[366213642,1750125335066,4759.5389,0.0001549,2]
[366213644,1750125491951,250.0,0.00015001,2]
[366213645,1750125492232,250.0,0.00015456,2]
[366213646,1750125516933,243.79,0.00013699,2]
[366213648,1750125581946,19999.99999002,0.00012,2]
[366213650,1750125851819,245.0,0.0001491,2]
[366213651,1750125852083,245.0,0.00015366,2]
[366213653,1750125952808,1000.0,0.00016,120]
[366213654,1750126068196,1000.0,0.00015434,2]
[366213656,1750126160192,18612.0,0.00024657,120]
[366213657,1750126211686,240.0,0.00014821,2]
[366213658,1750126211958,240.0,0.00015277,2]
[366213664,1750126231637,-227.54,0.00015635,2]
[366213665,1750126231648,-250.0,0.00015679,2]
[366213666,1750126231659,-240.0,0.00015734,3]
[366213667,1750126231673,-122.46,0.000159,5]
[366213668,1750126231686,-77.54,0.000159,5]
[366213669,1750126231696,-168.0,0.00015912,2]
[366213670,1750126231706,-1200.0,0.00015999,2]
[366213671,1750126231717,-1000.0,0.00016,2]
[366213672,1750126231726,-1000.0,0.00016,2]
[366213673,1750126231738,-1021.07218237,0.00016,2]
[366213674,1750126231750,-499.38781759,0.00016,5]
[366213675,1750126231763,-0.61218241,0.00016,5]
[366213676,1750126231773,-800.0,0.000161,5]
[366213677,1750126231784,-240.0,0.0001619,3]
[366213678,1750126231794,-1100.0,0.000162,5]
[366213679,1750126231804,-1435.39,0.000163,2]
[366213680,1750126231814,-1400.0,0.000163,5]
[366213681,1750126231824,-746.58609459,0.00016365,2]
[366213682,1750126231838,-1047.85311258,0.00016365,2]
[366213683,1750126231850,-297.31,0.00016365,2]
[366213684,1750126231866,-320.29041264,0.00016365,2]
[366213685,1750126231887,-999.71745748,0.00016365,2]
[366213686,1750126231941,-931.80899148,0.00016365,2]
[366213687,1750126231954,-400.28254252,0.00016365,2]
[366213688,1750126231967,-2528.95520549,0.00016365,2]
[366213689,1750126231990,-1512.49252738,0.00016365,2]
[366213690,1750126232002,-3347.84365584,0.00016365,2]
[366213691,1750126232012,-813.73,0.00016365,2]
[366213692,1750126232022,-200.0,0.000164,5]
[366213693,1750126232032,-161.69580902,0.000164,2]
[366213695,1750126232042,-277.1119638,0.000164,2]
[366213697,1750126232052,-258.84870805,0.00016435,2]
[366213699,1750126232062,-179.4331844,0.00016473,2]
[366213700,1750126232086,-500.0,0.00016473,2]
[366213701,1750126232097,-329.37072124,0.00016473,2]
[366213702,1750126232107,-156.97381373,0.00016473,2]
[366213705,1750126232121,-344.74638735,0.00016473,2]
[366213707,1750126232132,-500.0,0.00016473,2]
[366213709,1750126232142,-500.0,0.00016473,2]
[366213711,1750126232152,-500.0,0.00016473,2]
[366213713,1750126232163,-501.35107037,0.00016473,2]
[366213715,1750126232173,-500.0,0.00016473,2]
[366213717,1750126232183,-167.32857201,0.00016479,2]
[366213719,1750126232194,-258.84870797,0.00016487,2]
[366213721,1750126232205,-2596.73,0.00016487,2]
[366213724,1750126232216,-1369.01329522,0.0001649,2]
[366213726,1750126232226,-207.4,0.0001649,2]
[366213728,1750126232238,-1162.682,0.00016498,2]
[366213730,1750126232248,-549.39726694,0.00016499,2]
[366213732,1750126232258,-490.0,0.00016499,2]
[366213734,1750126232268,-556.99002267,0.00016499,2]
[366213737,1750126232279,-490.0,0.00016499,2]
[366213739,1750126232288,-490.0,0.00016499,2]
[366213741,1750126232299,-490.0,0.00016499,2]
[366213743,1750126232309,-501.01538619,0.00016499,2]
[366213745,1750126232319,-490.0,0.00016499,2]
[366213747,1750126232330,-514.15021235,0.00016499,2]
[366213749,1750126232340,-490.0,0.00016499,2]
[366213751,1750126232350,-490.0,0.00016499,2]
[366213753,1750126232361,-490.0,0.00016499,2]
[366213755,1750126232371,-490.55990664,0.00016499,2]
[366213757,1750126232381,-490.0,0.00016499,2]
[366213759,1750126232392,-491.80496744,0.00016499,2]
[366213761,1750126232401,-504.41949929,0.00016499,2]
[366213763,1750126232412,-490.0,0.00016499,2]
[366213766,1750126232423,-491.37562425,0.00016499,2]
[366213768,1750126232433,-2126.74,0.00016499,2]
[366213770,1750126232443,-561.23133052,0.00016499,2]
[366213772,1750126232453,-492.85264257,0.00016499,2]
[366213774,1750126232464,-207.01706503,0.00016499,2]
[366213776,1750126232474,-491.15974229,0.00016499,2]
[366213778,1750126232486,-527.33754353,0.00016499,2]
[366213781,1750126232502,-490.0,0.00016499,2]
[366213783,1750126232513,-490.0,0.00016499,2]
[366213785,1750126232527,-603.98,0.00016499,2]
[366213787,1750126232537,-173.20794556,0.00016499,2]
[366213789,1750126232548,-500.0,0.00016499,2]
[366213791,1750126232558,-500.0,0.00016499,2]
[366213794,1750126232569,-500.0,0.00016499,2]
[366213796,1750126232579,-490.39737603,0.00016499,2]
[366213798,1750126232589,-495.79083204,0.00016499,2]
[366213800,1750126232599,-1516.17,0.00016499,2]
[366213802,1750126232610,-490.0,0.00016499,2]
[366213804,1750126232621,-483.83706385,0.00016499,2]
[366213807,1750126232631,-490.0,0.00016499,2]
[366213809,1750126232642,-490.0,0.00016499,2]
[366213811,1750126232653,-491.17202843,0.00016499,2]
[366213813,1750126232665,-523.07713848,0.00016499,2]
[366213815,1750126232676,-490.0,0.00016499,2]
[366213817,1750126232686,-349.45853965,0.00016499,2]
[366213819,1750126232696,-490.0,0.00016499,2]
[366213821,1750126232707,-491.28075474,0.00016499,2]
[366213823,1750126232717,-1461.93,0.00016499,2]
[366213825,1750126232727,-1001.46376166,0.00016499,2]
[366213828,1750126232742,-491.30184568,0.00016499,2]
[366213830,1750126232752,-490.0,0.00016499,2]
[366213832,1750126232762,-491.15261222,0.00016499,2]
[366213834,1750126232773,-186.5267,0.00016499,2]
[366213836,1750126232783,-462.73458451,0.00016499,2]
[366213838,1750126232793,-594.07196385,0.00016499,2]
[366213840,1750126232803,-492.91032581,0.00016499,2]
[366213842,1750126232813,-572.25549757,0.00016499,2]
[366213844,1750126232824,-514.99988573,0.00016499,2]
[366213847,1750126232834,-492.40505345,0.00016499,2]
[366213849,1750126232844,-493.94908441,0.00016499,2]
[366213851,1750126232854,-490.0,0.00016499,2]
[366213853,1750126232864,-490.0,0.00016499,2]
[366213855,1750126232875,-490.0,0.00016499,2]
[366213894,1750126233297,-159.48602107,0.00016499,2]
[366213895,1750126233309,-491.15447808,0.00016499,2]
[366213896,1750126233320,-490.0,0.00016499,2]
[366213897,1750126233330,-450.26394682,0.00016499,2]
[366213898,1750126233341,-902.69,0.00016499,2]
[366213899,1750126233356,-151.54654048,0.00016499,2]
[366213900,1750126233367,-490.0,0.00016499,2]
[366213902,1750126233379,-175.943807,0.00016499,2]
[366213904,1750126233390,-490.0,0.00016499,2]
[366213906,1750126233400,-490.0,0.00016499,2]
[366213908,1750126233410,-490.55577572,0.00016499,2]
[366213910,1750126233420,-490.0,0.00016499,2]
[366213913,1750126233431,-790.27780019,0.000165,2]
[366213915,1750126233442,-2065.31,0.000165,2]
[366213917,1750126233453,-28783.17228113,0.000165,2]
[366213919,1750126233469,-1200.0,0.000165,2]
[366213921,1750126233488,-25234.79815505,0.000165,2]
[366214039,1750126237617,-488.60358769,0.00016499,2]
[366214040,1750126237674,-2.464617,0.00016499,2]
[366214041,1750126237684,-491.06848416,0.00016499,2]
[366214042,1750126237695,-0.22689884,0.00016499,2]
[366214043,1750126237707,-188.68470128,0.00016499,2]
[366214044,1750126237718,-129.71927984,0.00016499,2]
[366214045,1750126237737,-360.28072016,0.00016499,2]
[366214046,1750126237757,-490.0,0.00016499,2]
[366214047,1750126237767,-17062.50668709,0.000165,2]
[366214225,1750126239769,-490.0,0.00016499,2]
[366214227,1750126239780,-225325.24846155,0.000165,2]
[366214232,1750126239819,-1553.60327973,0.000165,2]
[366214245,1750126239933,-1103.39,0.00016499,2]
[366214247,1750126239943,-377964.0094065,0.000165,2]
[366214250,1750126239954,-99658.40755693,0.000165,2]
[366214252,1750126239965,-200.0,0.000165,6]
[366214254,1750126239975,-161.69580899,0.000165,2]
[366214256,1750126239985,-7113.0,0.00016504,2]
[366214258,1750126239996,-156.586,0.00016504,2]
[366214260,1750126240005,-4091.0,0.00016504,2]
[366214262,1750126240015,-854.0,0.00016504,2]
[366214263,1750126240025,-258.84870797,0.00016538,2]
[366214265,1750126240035,-151.0,0.00016575,2]
[366214267,1750126240046,-833.8156298,0.00016583,2]
[366214268,1750126240056,-150.0,0.00016585,2]
[366214270,1750126240066,-150.13,0.00016585,2]
[366214272,1750126240076,-946.0,0.00016585,2]
[366214274,1750126240086,-3333.0,0.00016585,2]
[366214276,1750126240096,-637.0,0.00016585,2]
[366214278,1750126240106,-802.0,0.00016585,2]
[366214280,1750126240122,-1277.0,0.00016585,2]
[366214282,1750126240133,-590.0,0.00016585,2]
[366214283,1750126240144,-2003.0,0.00016585,2]
[366214285,1750126240154,-558.0,0.00016585,2]
[366214287,1750126240164,-928.0,0.00016585,2]
[366214289,1750126240175,-1674.0,0.00016585,2]
[366214290,1750126240186,-258.84870797,0.0001659,2]
[366214292,1750126240196,-200.0,0.000166,6]
[366214294,1750126240206,-745.0,0.000166,2]
[366214296,1750126240216,-153.79393504,0.000166,2]
[366214297,1750126240226,-161.69580899,0.000166,2]
[366214299,1750126240237,-258.84870797,0.00016642,2]
[366214301,1750126240247,-167.3,0.00016644,2]
[366214303,1750126240258,-240.0,0.00016647,4]
[366214305,1750126240268,-640.5126362,0.00016647,2]
[366214307,1750126240280,-1111.809781,0.0001666,2]
[366214309,1750126240290,-168.0,0.0001666,2]
[366214310,1750126240300,-490.0,0.00016663,2]
[366214312,1750126240311,-490.0,0.00016663,2]
[366214314,1750126240321,-490.0,0.00016663,2]
[366214316,1750126240332,-490.0,0.00016663,2]
[366214318,1750126240342,-490.0,0.00016663,2]
[366214319,1750126240352,-490.0,0.00016663,2]
[366214321,1750126240362,-490.0,0.00016663,2]
[366214323,1750126240372,-490.0,0.00016663,2]
[366214325,1750126240381,-490.0,0.00016663,2]
[366214327,1750126240391,-490.0,0.00016663,2]
[366214329,1750126240401,-2126.74,0.00016663,2]
[366214331,1750126240412,-490.0,0.00016663,2]
[366214332,1750126240422,-573.19444572,0.00016663,2]
[366214334,1750126240432,-603.98,0.00016663,2]
[366214336,1750126240442,-1516.17,0.00016663,2]
[366214338,1750126240452,-490.0,0.00016663,2]
[366214339,1750126240462,-490.0,0.00016663,2]
[366214341,1750126240472,-490.0,0.00016663,2]
[366214343,1750126240482,-490.0,0.00016663,2]
[366214345,1750126240493,-1461.93,0.00016663,2]
[366214346,1750126240503,-490.0,0.00016663,2]
[366214348,1750126240513,-490.0,0.00016663,2]
[366214350,1750126240524,-490.0,0.00016663,2]
[366214352,1750126240535,-490.0,0.00016663,2]
[366214366,1750126240693,-490.0,0.00016663,2]
[366214368,1750126240703,-902.69,0.00016663,2]
[366214369,1750126240714,-233.49,0.00016663,2]
[366214371,1750126240724,-175.943807,0.00016663,2]
[366214373,1750126240734,-490.0,0.00016663,2]
[366214375,1750126240744,-490.0,0.00016663,2]
[366214377,1750126240754,-490.0,0.00016663,2]
[366214379,1750126240764,-490.0,0.00016663,2]
[366214380,1750126240774,-246.41,0.00016663,2]
[366214381,1750126240788,-188.58243507,0.00016663,2]
[366214382,1750126240797,-153.43,0.00016671,2]
[366214383,1750126240807,-18483.1999,0.00016681,2]
[366214384,1750126240817,-258.84870797,0.00016693,2]
[366214385,1750126240827,-490.0,0.00016699,2]
[366214386,1750126240837,-490.0,0.00016699,2]
[366214387,1750126240847,-259.29393333,0.00016699,2]
[366214388,1750126240857,-490.0,0.00016699,2]
[366214389,1750126240867,-446.20729995,0.00016699,2]
[366214390,1750126240877,-2474.9,0.00016699,2]
[366214391,1750126240886,-490.0,0.00016699,2]
[366214392,1750126240896,-813.7,0.00016699,2]
[366214393,1750126240906,-1619.55,0.00016699,2]
[366214394,1750126240915,-490.0,0.00016699,2]
[366214395,1750126240925,-490.0,0.00016699,2]